fUSD/lending_fUSD_20250606
["ID","MTS","AMOUNT","RATE_DAILY","PERIOD"]
[364667702,1749192660819,-481.55726094,0.00030164,7]
[364667703,1749192660830,-480.0,0.00030164,7]
[364667704,1749192660840,-480.0,0.00030164,7]
[364667705,1749192660849,-854.68,0.00030164,7]
[364667706,1749192660859,-480.0,0.00030164,7]
[364667707,1749192660868,-432.69760027,0.00030164,7]
[364667708,1749192660878,-482.4439344,0.00030164,7]
[364667709,1749192660889,-383.41112128,0.00030164,7]
[364667710,1749192660905,-1334.57,0.00030164,7]
[364667711,1749192660914,-480.0,0.00030164,7]
[364667712,1749192660924,-1562.21,0.00030164,7]
[364667713,1749192660933,-480.0,0.00030164,7]
[364667714,1749192660943,-480.0,0.00030164,7]
[364667715,1749192660952,-480.0,0.00030164,7]
[364667716,1749192660961,-480.0,0.00030164,7]
[364667717,1749192660970,-480.0,0.00030164,7]
[364667718,1749192660981,-13954.29,0.00030164,7]
[364667719,1749192660992,-480.0,0.00030164,7]
[364667720,1749192661003,-1000.0,0.00030164,7]
[364667721,1749192661013,-721.27,0.00030164,7]
[364667722,1749192661022,-749.27,0.00030164,7]
[364667723,1749192661032,-501.22796512,0.00030164,7]
[364667724,1749192661042,-480.0,0.00030164,7]
[364667725,1749192661052,-480.0,0.00030164,7]
[364667726,1749192661061,-480.0,0.00030164,7]
[364667727,1749192661071,-480.0,0.00030164,7]
[364667728,1749192661080,-535.31,0.00030164,7]
[364667729,1749192661089,-480.0,0.00030164,7]
[364667730,1749192661099,-490.70700859,0.00030164,7]
[364667731,1749192661108,-500.0,0.00030164,2]
[364667732,1749192661118,-500.0,0.00030164,2]
[364667733,1749192661127,-500.0,0.00030164,2]
[364667734,1749192661136,-500.0,0.00030164,2]
[364667735,1749192661146,-500.0,0.00030164,2]
[364667736,1749192661156,-1410.64,0.00030164,7]
[364667737,1749192661166,-500.0,0.00030164,2]
[364667738,1749192661175,-484.33830044,0.00030164,7]
[364667739,1749192661184,-500.0,0.00030164,2]
[364667740,1749192661194,-491.46711055,0.00030164,7]
[364667741,1749192661203,-4145.62,0.00030164,7]
[364667742,1749192661213,-480.0,0.00030164,7]
[364667743,1749192661223,-500.0,0.00030164,2]
[364667744,1749192661232,-500.0,0.00030164,2]
[364667745,1749192661242,-500.0,0.00030164,2]
[364667746,1749192661251,-239.241534,0.00030164,7]
[364667747,1749192661261,-500.0,0.00030164,2]
[364667748,1749192661270,-481.2423928,0.00030164,7]
[364667749,1749192661280,-502.53812426,0.00030164,2]
[364667750,1749192661290,-735.38,0.00030164,7]
[364667751,1749192661299,-239.241534,0.00030164,7]
[364667752,1749192661308,-1115.23,0.00030164,7]
[364667753,1749192661318,-483.11270371,0.00030164,7]
[364667754,1749192661328,-239.241534,0.00030164,7]
[364667755,1749192661337,-239.241534,0.00030164,7]
[364667756,1749192661347,-151.0,0.00030164,7]
[364667757,1749192661356,-2684.8,0.00030164,7]
[364667758,1749192661366,-239.241534,0.00030164,7]
[364667759,1749192661375,-151.0,0.00030164,7]
[364667760,1749192661384,-151.0,0.00030164,7]
[364667761,1749192661394,-480.0,0.00030164,7]
[364667762,1749192661403,-151.0,0.00030164,7]
[364667763,1749192661412,-151.0,0.00030164,7]
[364667764,1749192661421,-482.08396667,0.00030164,7]
[364667765,1749192661430,-480.0,0.00030164,7]
[364667766,1749192661440,-239.241534,0.00030164,7]
[364667767,1749192661449,-480.0,0.00030164,7]
[364667768,1749192661458,-239.241534,0.00030164,7]
[364667769,1749192661467,-239.241534,0.00030164,7]
[364667770,1749192661476,-239.241534,0.00030164,7]
[364667771,1749192661485,-480.0,0.00030164,7]
[364667772,1749192661496,-151.0,0.00030164,7]
[364667773,1749192661506,-239.241534,0.00030164,7]
[364667774,1749192661514,-480.0,0.00030164,7]
[364667775,1749192661523,-168.574258,0.00030164,7]
[364667776,1749192661534,-406.43104568,0.00030164,7]
[364667777,1749192661543,-776.15,0.00030164,7]
[364667778,1749192661552,-398.85324188,0.00030164,7]
[364667779,1749192661562,-480.0,0.00030164,7]
[364667780,1749192661571,-480.0,0.00030164,7]
[364667781,1749192661580,-732.66,0.00030164,7]
[364667782,1749192661590,-151.0,0.00030164,7]
[364667783,1749192661599,-1168.31,0.00030164,7]
[364667784,1749192661609,-151.0,0.00030164,7]
[364667785,1749192661619,-484.01917455,0.00030164,7]
[364667786,1749192661628,-151.0,0.00030164,7]
[364667787,1749192661638,-1393.37,0.00030164,7]
[364667788,1749192661647,-151.0,0.00030164,7]
[364667789,1749192661658,-480.0,0.00030164,7]
[364667790,1749192661667,-784.29,0.00030164,7]
[364667791,1749192661677,-586.88,0.00030164,7]
[364667792,1749192661686,-151.0,0.00030164,7]
[364667793,1749192661696,-151.0,0.00030164,7]
[364667794,1749192661705,-480.0,0.00030164,7]
[364667795,1749192661715,-894.81,0.00030164,7]
[364667796,1749192661724,-480.0,0.00030164,7]
[364667797,1749192661734,-952.6,0.00030164,7]
[364667798,1749192661744,-480.0,0.00030164,7]
[364667799,1749192661755,-1003.28,0.00030164,7]
[364667800,1749192661765,-485.80005832,0.00030164,7]
[364667801,1749192661774,-1384.95,0.00030164,7]
[364667802,1749192661784,-480.0,0.00030164,7]
[364667803,1749192661793,-18294.64,0.00030164,7]
[364667804,1749192661802,-480.0,0.00030164,5]
[364667805,1749192661811,-487.19512927,0.00030164,7]
[364667806,1749192661821,-480.0,0.00030164,7]
[364667807,1749192661830,-701.3,0.00030164,7]
[364667808,1749192661840,-1044.12,0.00030164,7]
[364667809,1749192661849,-2507.72,0.00030164,7]
[364667810,1749192661859,-480.0,0.00030164,7]
[364667811,1749192661868,-812.2,0.00030164,7]
[364667812,1749192661877,-480.0,0.00030164,7]
[364667813,1749192661887,-812.2,0.00030164,7]
[364667814,1749192661899,-812.2,0.00030164,7]
[364667815,1749192661909,-812.2,0.00030164,7]
[364667816,1749192661918,-480.0,0.00030164,7]
[364667817,1749192661927,-599.66,0.00030164,7]
[364667818,1749192661937,-812.2,0.00030164,7]
[364667819,1749192661948,-480.0,0.00030164,7]
[364667820,1749192661957,-427.09394536,0.00030164,7]
[364667821,1749192661967,-812.2,0.00030164,7]
[364667822,1749192661978,-812.2,0.00030164,7]
[364667823,1749192661988,-812.2,0.00030164,7]
[364667824,1749192661998,-812.2,0.00030164,7]
[364667825,1749192662007,-812.2,0.00030164,7]
[364667826,1749192662016,-480.0,0.00030164,7]
[364667827,1749192662027,-812.2,0.00030164,7]
[364667828,1749192662036,-953.26,0.00030164,7]
[364667829,1749192662046,-812.2,0.00030164,7]
[364667830,1749192662055,-522.75,0.00030164,7]
[364667831,1749192662065,-812.2,0.00030164,7]
[364667832,1749192662075,-812.2,0.00030164,7]
[364667833,1749192662084,-812.2,0.00030164,7]
[364667834,1749192662094,-480.0,0.00030164,7]
[364667835,1749192662104,-2723.64,0.00030164,7]
[364667836,1749192662113,-547.4,0.00030164,7]
[364667837,1749192662122,-151.0,0.00030164,7]
[364667838,1749192662132,-480.0,0.00030164,7]
[364667839,1749192662141,-151.0,0.00030164,7]
[364667840,1749192662150,-502.03,0.00030164,7]
[364667841,1749192662159,-1252.03,0.00030164,7]
[364667842,1749192662168,-151.0,0.00030164,7]
[364667843,1749192662178,-480.0,0.00030164,7]
[364667844,1749192662187,-2222.98,0.00030164,7]
[364667845,1749192662196,-151.0,0.00030164,7]
[364667846,1749192662206,-151.0,0.00030164,7]
[364667847,1749192662215,-480.0,0.00030164,7]
[364667848,1749192662225,-480.0,0.00030164,7]
[364667849,1749192662234,-480.0,0.00030164,7]
[364667850,1749192662243,-480.0,0.00030164,7]
[364667851,1749192662254,-1188.22,0.00030164,7]
[364667852,1749192662264,-1145.19,0.00030164,7]
[364667853,1749192662273,-151.0,0.00030164,7]
[364667854,1749192662283,-151.0,0.00030164,7]
[364667855,1749192662293,-1031.14,0.00030164,7]
[364667856,1749192662302,-480.0,0.00030164,7]
[364667857,1749192662312,-500.0,0.00030164,7]
[364667858,1749192662321,-2372.89,0.00030164,7]
[364667859,1749192662332,-150.0,0.00030164,2]
[364667860,1749192662342,-151.0,0.00030164,7]
[364667861,1749192662352,-152.373406,0.00030164,7]
[364667862,1749192662362,-1367.81,0.00030164,7]
[364667863,1749192662372,-21187.12,0.00030164,7]
[364667864,1749192662382,-500.0,0.00030164,7]
[364667865,1749192662393,-500.0,0.00030164,7]
[364667866,1749192662402,-500.0,0.00030164,7]
[364667867,1749192662412,-480.0,0.00030164,7]
[364667868,1749192662422,-500.0,0.00030164,7]
[364667869,1749192662432,-174.4126255,0.00030164,7]
[364667870,1749192662441,-823.56,0.00030164,7]
[364667871,1749192662451,-480.0,0.00030164,7]
[364667872,1749192662460,-480.0,0.00030164,7]
[364667873,1749192662470,-480.0,0.00030164,2]
[364667874,1749192662480,-2119.73,0.00030164,7]
[364667875,1749192662490,-4150.0,0.00030164,7]
[364667876,1749192662500,-151.0,0.00030164,7]
[364667877,1749192662511,-480.0,0.00030164,3]
[364667878,1749192662520,-480.0,0.00030164,7]
[364667879,1749192662530,-493.81184276,0.00030164,7]
[364667880,1749192662540,-981.45,0.00030164,7]
[364667881,1749192662550,-480.0,0.00030164,7]
[364667882,1749192662559,-480.0,0.00030164,7]
[364667883,1749192662569,-151.0,0.00030164,7]
[364667884,1749192662579,-480.0,0.00030164,7]
[364667885,1749192662589,-642.87,0.00030164,2]
[364667886,1749192662600,-151.0,0.00030164,7]
[364667887,1749192662610,-480.0,0.00030164,7]
[364667888,1749192662620,-154.54021,0.00030164,7]
[364667889,1749192662630,-976.64,0.00030164,7]
[364667890,1749192662640,-515.0579445,0.00030164,7]
[364667891,1749192662652,-81999.01,0.00030164,7]
[364667892,1749192662662,-480.0,0.00030164,7]
[364667893,1749192662671,-895.35,0.00030164,7]
[364667894,1749192662681,-480.0,0.00030164,7]
[364667895,1749192662691,-480.0,0.00030164,7]
[364667896,1749192662701,-151.0,0.00030164,7]
[364667897,1749192662710,-480.0,0.00030164,7]
[364667898,1749192662720,-2369.76,0.00030164,7]
[364667899,1749192662730,-894.02,0.00030164,7]
[364667900,1749192662739,-151.0,0.00030164,7]
[364667901,1749192662748,-480.0,0.00030164,7]
[364667902,1749192662758,-151.0,0.00030164,7]
[364667903,1749192662768,-151.0,0.00030164,7]
[364667904,1749192662779,-151.0,0.00030164,7]
[364667905,1749192662789,-151.0,0.00030164,7]
[364667906,1749192662799,-480.0,0.00030164,7]
[364667907,1749192662809,-151.0,0.00030164,7]
[364667908,1749192662820,-1023.07,0.00030164,2]
[364667909,1749192662830,-485.40579763,0.00030164,7]
[364667910,1749192662840,-245.525784,0.00030164,7]
[364667911,1749192662850,-69246.55803661,0.00030164,2]
[364667912,1749192662860,-500.0,0.00030164,2]
[364667913,1749192662870,-500.0,0.00030166,2]
[364667914,1749192662880,-500.0,0.00030166,2]
[364667915,1749192662890,-436.07300312,0.00030166,2]
[364667916,1749192662905,-500.0,0.00030166,2]
[364667917,1749192662916,-529.0,0.00030166,2]
[364667918,1749192662926,-500.0,0.00030166,2]
[364667919,1749192662936,-500.0,0.00030166,2]
[364667920,1749192662946,-500.0,0.00030166,2]
[364667921,1749192662956,-500.0,0.00030166,2]
[364667922,1749192662965,-500.0,0.00030166,2]
[364667923,1749192662977,-500.0,0.00030166,2]
[364667924,1749192662988,-1850.0,0.00030166,2]
[364667925,1749192662997,-500.0,0.00030166,2]
[364667926,1749192663007,-500.0,0.00030166,2]
[364667927,1749192663017,-151.0,0.00030166,7]
[364667928,1749192663028,-151.0,0.00030166,7]
[364667929,1749192663038,-3155.15941682,0.00030167,2]
[364667930,1749192663048,-151.0,0.00030167,7]
[364667931,1749192663058,-225.77975091,0.00030169,2]
[364667932,1749192663068,-171.89382593,0.00030169,2]
[364667933,1749192663079,-151.0,0.0003017,7]
[364667934,1749192663088,-151.0,0.0003017,7]
[364667935,1749192663099,-161.0,0.0003017,7]
[364667936,1749192663108,-151.0,0.0003017,7]
[364667937,1749192663118,-253.2642748,0.0003017,7]
[364667938,1749192663128,-151.0,0.0003017,7]
[364667939,1749192663138,-152.0,0.0003017,7]
[364667940,1749192663147,-151.0,0.0003017,7]
[364667941,1749192663157,-152.0,0.0003017,7]
[364667942,1749192663168,-151.0,0.0003017,7]
[364667943,1749192663178,-151.0,0.0003017,7]
[364667944,1749192663187,-152.0,0.0003017,7]
[364667945,1749192663196,-292.95177789,0.0003017,7]
[364667946,1749192663206,-152.0,0.0003017,7]
[364667947,1749192663215,-152.0,0.0003017,7]
[364667948,1749192663224,-152.0,0.0003017,7]
[364667949,1749192663234,-152.0,0.0003017,7]
[364667950,1749192663243,-203.430055,0.00030172,7]
[364667951,1749192663252,-203.430055,0.00030172,7]
[364667952,1749192663263,-4848.19,0.00030172,7]
[364667953,1749192663272,-239.241534,0.00030172,7]
[364667954,1749192663282,-239.241534,0.00030172,7]
[364667955,1749192663292,-151.0,0.00030172,7]
[364667956,1749192663301,-501.35969813,0.00030173,5]
[364667957,1749192663311,-521.72942323,0.00030173,5]
[364667958,1749192663320,-159.74111079,0.00030173,5]
[364667959,1749192663329,-500.0,0.00030173,5]
[364667960,1749192663339,-500.0,0.00030173,5]
[364667961,1749192663348,-500.0,0.00030173,5]
[364667962,1749192663358,-500.0,0.00030173,5]
[364667963,1749192663368,-504.56951481,0.00030173,5]
[364667964,1749192663377,-208.87815122,0.00030173,5]
[364667965,1749192663387,-500.0,0.00030173,5]
[364667966,1749192663396,-501.65067356,0.00030173,4]
[364667967,1749192663406,-500.0,0.00030173,2]
[364667968,1749192663416,-500.0,0.00030173,5]
[364667969,1749192663426,-500.0,0.00030173,2]
[364667970,1749192663435,-2000.0,0.00030176,3]
[364667971,1749192663445,-199.642928,0.00030184,7]
[364667972,1749192663455,-151.0,0.00030184,7]
[364667973,1749192663464,-151.0,0.00030184,7]
[364667974,1749192663474,-151.0,0.00030184,7]
[364667975,1749192663484,-3155.15941682,0.00030187,2]
[364667976,1749192663493,-500.0,0.00030191,2]
[364667977,1749192663503,-500.0,0.00030191,2]
[364667978,1749192663513,-500.0,0.00030191,2]
[364667979,1749192663522,-2483.0,0.00030191,2]
[364667980,1749192663533,-500.0,0.00030191,2]
[364667981,1749192663542,-150.0,0.00030191,2]
[364667982,1749192663552,-150.0,0.00030191,2]
[364667983,1749192663562,-500.0,0.00030191,7]
[364667984,1749192663571,-257.82896973,0.00030191,7]
[364667985,1749192663581,-500.0,0.00030191,7]
[364667986,1749192663590,-500.0,0.00030191,7]
[364667987,1749192663599,-219.45071894,0.00030191,7]
[364667988,1749192663608,-500.0,0.00030191,7]
[364667989,1749192663618,-500.0,0.00030191,7]
[364667990,1749192663627,-500.0,0.00030192,2]
[364667991,1749192663638,-500.0,0.00030193,2]
[364667992,1749192663647,-261.51976516,0.00030193,2]
[364667993,1749192663658,-500.0,0.00030193,2]
[364667994,1749192663668,-529.0,0.00030193,2]
[364667995,1749192663678,-500.0,0.00030193,2]
[364667996,1749192663688,-500.0,0.00030193,2]
[364667997,1749192663698,-500.0,0.00030193,2]
[364667998,1749192663707,-351.16496896,0.00030193,2]
[364667999,1749192663717,-500.0,0.00030193,2]
[364668000,1749192663726,-500.0,0.00030193,2]
[364668001,1749192663736,-1850.0,0.00030193,2]
[364668002,1749192663745,-500.0,0.00030193,2]
[364668003,1749192663755,-500.0,0.00030193,2]
[364668004,1749192663962,-151.0,0.00030199,7]
[364668005,1749192663973,-15398.18,0.000302,2]
[364668006,1749192663983,-1743.79,0.000302,2]
[364668007,1749192663993,-152.257674,0.000302,7]
[364668008,1749192664003,-151.0,0.000302,7]
[364668009,1749192664013,-214.22779,0.000302,7]
[364668010,1749192664022,-151.0,0.000302,7]
[364668011,1749192664033,-155.152848,0.000302,7]
[364668012,1749192664043,-155.152848,0.000302,7]
[364668013,1749192664057,-151.0,0.000302,7]
[364668014,1749192664068,-151.0,0.000302,7]
[364668015,1749192664078,-182.121268,0.000302,7]
[364668016,1749192664088,-182.121268,0.000302,7]
[364668017,1749192664098,-151.0,0.000302,7]
[364668018,1749192664107,-768.0,0.000302,2]
[364668019,1749192664117,-713.0,0.000302,2]
[364668020,1749192664127,-2114.32,0.000302,2]
[364668021,1749192664137,-376.0,0.000302,2]
[364668022,1749192664146,-500.0,0.00030201,2]
[364668023,1749192664157,-3155.15941682,0.00030208,2]
[364668024,1749192664167,-150.859,0.00030212,2]
[364668025,1749192664177,-183.834,0.00030212,2]
[364668026,1749192664187,-151.168,0.00030212,2]
[364668027,1749192664197,-150.281,0.00030212,2]
[364668028,1749192664206,-240.448,0.00030212,2]
[364668029,1749192664216,-150.0,0.00030212,2]
[364668030,1749192664226,-156.819,0.00030212,2]
[364668031,1749192664236,-150.205,0.00030212,2]
[364668032,1749192664245,-333.810366,0.00030212,7]
[364668033,1749192664255,-457.74046,0.00030212,7]
[364668034,1749192664263,-333.810366,0.00030212,7]
[364668035,1749192664271,-457.74046,0.00030212,7]
[364668036,1749192664283,-151.0,0.00030212,7]
[364668037,1749192664292,-1143.44,0.00030213,2]
[364668038,1749192664300,-500.0,0.00030213,7]
[364668039,1749192664310,-238.26929,0.00030213,7]
[364668040,1749192664321,-500.0,0.00030213,7]
[364668041,1749192664331,-238.26929,0.00030213,7]
[364668042,1749192664341,-151.0,0.00030213,7]
[364668043,1749192664351,-151.0,0.00030213,7]
[364668044,1749192664360,-293.940487,0.00030213,7]
[364668045,1749192664370,-151.0,0.00030213,7]
[364668046,1749192664380,-155.017,0.00030213,2]
[364668047,1749192664390,-1164.445,0.00030213,2]
[364668048,1749192664400,-944.0,0.00030213,2]
[364668049,1749192664410,-636.0,0.00030213,2]
[364668050,1749192664420,-805.0,0.00030213,2]
[364668051,1749192664430,-1158.0,0.00030213,2]
[364668052,1749192664440,-1274.0,0.00030213,2]
[364668053,1749192664450,-589.0,0.00030213,2]
[364668054,1749192664460,-559.122,0.00030213,2]
[364668055,1749192664470,-929.469,0.00030213,2]
[364668056,1749192664481,-2099.361,0.00030213,2]
[364668057,1749192664490,-1254.0,0.00030213,2]
[364668058,1749192664500,-7017.0,0.00030213,2]
[364668059,1749192664511,-852.0,0.00030213,2]
[364668060,1749192664521,-155.0,0.00030213,2]
[364668061,1749192664533,-4081.0,0.00030213,2]
[364668062,1749192664543,-263.420095,0.00030218,7]
[364668063,1749192664552,-263.420095,0.00030218,7]
[364668064,1749192664562,-151.0,0.00030218,7]
[364668065,1749192664572,-151.0,0.00030218,7]
[364668066,1749192664581,-155.636501,0.00030218,7]
[364668067,1749192664591,-151.0,0.00030218,7]
[364668068,1749192664601,-420.757786,0.00030218,7]
[364668069,1749192664610,-420.757786,0.00030218,7]
[364668070,1749192664620,-500.0,0.00030219,2]
[364668071,1749192664629,-500.0,0.00030219,2]
[364668072,1749192664638,-500.0,0.00030219,2]
[364668073,1749192664648,-2483.0,0.00030219,2]
[364668074,1749192664657,-500.0,0.00030219,2]
[364668075,1749192664667,-178.7725347,0.00030219,2]
[364668076,1749192664676,-209.7775355,0.00030219,2]
[364668077,1749192664686,-500.0,0.00030219,7]
[364668078,1749192664696,-300.6854111,0.00030219,7]
[364668079,1749192664705,-395.74451207,0.00030219,7]
[364668080,1749192664715,-500.0,0.00030219,7]
[364668081,1749192664726,-367.17476536,0.00030219,7]
[364668082,1749192664740,-151.0,0.00030219,7]
[364668083,1749192664749,-192.517797,0.00030219,7]
[364668084,1749192664759,-192.517797,0.00030219,7]
[364668085,1749192664769,-500.0,0.00030219,2]
[364668086,1749192664778,-500.0,0.0003022,2]
[364668087,1749192664787,-500.0,0.0003022,2]
[364668088,1749192664797,-529.0,0.0003022,2]
[364668089,1749192664806,-500.0,0.0003022,2]
[364668090,1749192664815,-208.18176395,0.0003022,2]
[364668091,1749192664825,-158.57695402,0.0003022,2]
[364668092,1749192664834,-500.0,0.0003022,2]
[364668093,1749192664844,-1850.0,0.0003022,2]
[364668094,1749192664853,-500.0,0.0003022,2]
[364668095,1749192664863,-500.0,0.0003022,2]
[364668096,1749192664872,-3155.15941682,0.00030228,2]
[364668097,1749192664882,-455.62743304,0.00030228,2]
[364668098,1749192664892,-150.39,0.00030235,2]
[364668099,1749192664904,-300.39,0.00030235,2]
[364668100,1749192664913,-153.52001343,0.00030246,2]
[364668101,1749192664923,-500.0,0.00030246,2]
[364668102,1749192664932,-500.0,0.00030246,2]
[364668103,1749192664942,-2483.0,0.00030246,2]
[364668104,1749192664952,-500.0,0.00030246,2]
[364668105,1749192664962,-206.28072487,0.00030246,7]
[364668106,1749192664971,-290.02106427,0.00030246,7]
[364668107,1749192664982,-500.0,0.00030247,2]
[364668108,1749192664991,-500.0,0.00030248,2]
[364668109,1749192665001,-500.0,0.00030248,2]
[364668110,1749192665011,-529.0,0.00030248,2]
[364668111,1749192665020,-500.0,0.00030248,2]
[364668112,1749192665031,-500.0,0.00030248,2]
[364668113,1749192665041,-1850.0,0.00030248,2]
[364668114,1749192665051,-254.34453879,0.00030248,2]
[364668115,1749192665062,-183.03710801,0.00030248,2]
[364668116,1749192665072,-150.0,0.00030255,2]
[364668117,1749192665083,-150.0,0.00030271,2]
[364668118,1749192665093,-420.0,0.00030271,2]
[364668119,1749192665103,-500.0,0.00030273,2]
[364668120,1749192665113,-500.0,0.00030273,2]
[364668121,1749192665123,-2483.0,0.00030273,2]
[364668122,1749192665133,-500.0,0.00030273,2]
[364668123,1749192665142,-500.0,0.00030274,2]
[364668124,1749192665152,-505.315916,0.00030274,7]
[364668125,1749192665162,-505.315916,0.00030274,7]
[364668126,1749192665172,-151.0,0.00030274,7]
[364668127,1749192665182,-153.134656,0.00030274,7]
[364668128,1749192665192,-500.0,0.00030274,2]
[364668129,1749192665201,-500.0,0.00030274,2]
[364668130,1749192665211,-500.0,0.00030274,2]
[364668131,1749192665220,-500.0,0.00030274,2]
[364668132,1749192665230,-500.0,0.00030274,2]
[364668133,1749192665239,-500.0,0.00030274,2]
[364668134,1749192665249,-500.0,0.00030274,2]
[364668135,1749192665259,-500.0,0.00030274,2]
[364668136,1749192665269,-500.0,0.00030274,2]
[364668137,1749192665279,-500.0,0.00030274,2]
[364668138,1749192665289,-500.0,0.00030274,2]
[364668139,1749192665299,-524.0,0.00030274,2]
[364668140,1749192665308,-151.0,0.00030274,7]
[364668141,1749192665318,-1656.20892,0.00030274,7]
[364668142,1749192665328,-1656.20892,0.00030274,7]
[364668143,1749192665338,-151.0,0.00030274,7]
[364668144,1749192665347,-279.345886,0.00030274,7]
[364668145,1749192665357,-279.345886,0.00030274,7]
[364668146,1749192665367,-163.309374,0.00030274,7]
[364668147,1749192665378,-500.0,0.00030275,2]
[364668148,1749192665388,-500.0,0.00030275,2]
[364668149,1749192665398,-529.0,0.00030275,2]
[364668150,1749192665408,-500.0,0.00030275,2]
[364668151,1749192665418,-500.0,0.00030275,2]
[364668152,1749192665427,-1850.0,0.00030275,2]
[364668153,1749192665438,-152.0,0.00030282,4]
[364668154,1749192665448,-210.23669787,0.00030285,22]
[364668155,1749192665458,-1145.33,0.00030298,7]
[364668156,1749192665468,-4848.19,0.00030298,7]
[364668157,1749192665478,-812.2,0.00030298,7]
[364668158,1749192665488,-99561.15330988,0.00030299,7]
[364668159,1749192665498,-151.0,0.00030299,7]
[364668160,1749192665508,-151.0,0.00030299,7]
[364668161,1749192665518,-151.0,0.00030299,7]
[364668162,1749192665529,-154.14598,0.00030299,7]
[364668163,1749192665539,-151.0,0.00030299,7]
[364668164,1749192665549,-151.0,0.00030299,7]
[364668165,1749192665559,-151.0,0.00030299,7]
[364668166,1749192665569,-151.0,0.00030299,7]
[364668167,1749192665578,-151.0,0.00030299,7]
[364668168,1749192665588,-151.0,0.00030299,7]
[364668169,1749192665597,-263.209046,0.00030299,7]
[364668170,1749192665607,-263.209046,0.00030299,7]
[364668171,1749192665617,-151.0,0.00030299,7]
[364668172,1749192665626,-408.013246,0.00030299,7]
[364668173,1749192665636,-151.0,0.00030299,7]
[364668174,1749192665645,-151.0,0.00030299,7]
[364668175,1749192665656,-151.0,0.00030299,7]
[364668176,1749192665666,-151.0,0.00030299,7]
[364668177,1749192665675,-151.0,0.00030299,7]
[364668178,1749192665685,-1285.277035,0.00030299,7]
[364668179,1749192665694,-1285.277035,0.00030299,7]
[364668180,1749192665704,-151.0,0.00030299,7]
[364668181,1749192665713,-151.0,0.00030299,7]
[364668182,1749192665722,-151.0,0.00030299,7]
[364668183,1749192665731,-151.0,0.00030299,7]
[364668184,1749192665741,-166.306015,0.00030299,7]
[364668185,1749192665750,-227.379596,0.00030299,7]
[364668186,1749192665759,-227.379596,0.00030299,7]
[364668187,1749192665769,-670.44435,0.00030299,7]
[364668188,1749192665778,-670.44435,0.00030299,7]
[364668189,1749192665787,-314.124459,0.00030299,7]
[364668190,1749192665795,-151.0,0.00030299,7]
[364668191,1749192665803,-314.124459,0.00030299,7]
[364668192,1749192665811,-151.0,0.00030299,7]
[364668193,1749192665820,-151.0,0.00030299,7]
[364668194,1749192665828,-151.0,0.00030299,7]
[364668195,1749192665836,-177.9078,0.00030299,7]
[364668196,1749192665844,-1360.458994,0.00030299,7]
[364668197,1749192665853,-1360.458994,0.00030299,7]
[364668198,1749192665861,-862.223772,0.00030299,7]
[364668199,1749192665869,-862.223772,0.00030299,7]
[364668200,1749192665877,-3575.617004,0.00030299,7]
[364668201,1749192665885,-3575.617004,0.00030299,7]